[Event "Late-Titled-Tuesday-Blitz-September-05-2023"]
[Site "Chess.com"]
[Date "2023.09.05"]
[Round "11"]
[White "MITerryble"]
[Black "HansOnTwitch"]
[Result "1-0"]
[WhiteElo "2939"]
[BlackElo "3014"]
[TimeControl "180+1"]
[EndTime "16:09:18 PDT"]
[Termination "MITerryble won by resignation"]

1. Nf3 {[%clk 0:03:00.9]} 1... d5 {[%clk 0:02:42.4]} 2. a3 {[%clk 0:03:00.9]}
2... Nf6 {[%clk 0:02:36.2]} 3. b4 {[%clk 0:03:00.2]} 3... Bg4 {[%clk 0:02:36.3]}
4. Bb2 {[%clk 0:03:00]} 4... e6 {[%clk 0:02:36.4]} 5. h3 {[%clk 0:02:49.6]} 5...
Bh5 {[%clk 0:02:32.5]} 6. d3 {[%clk 0:02:43.4]} 6... Nbd7 {[%clk 0:02:23.8]} 7.
Nbd2 {[%clk 0:02:40.4]} 7... Bd6 {[%clk 0:02:22.3]} 8. e3 {[%clk 0:02:35.7]}
8... O-O {[%clk 0:02:19.3]} 9. g4 {[%clk 0:02:35.5]} 9... Bg6 {[%clk 0:02:19.4]}
10. Nh4 {[%clk 0:02:34.7]} 10... a5 {[%clk 0:02:17.5]} 11. b5 {[%clk 0:02:26.9]}
11... c6 {[%clk 0:02:17.4]} 12. bxc6 {[%clk 0:02:24.7]} 12... bxc6 {[%clk
0:02:17.4]} 13. Bg2 {[%clk 0:02:19.3]} 13... Rb8 {[%clk 0:02:16.2]} 14. Rb1
{[%clk 0:02:09.7]} 14... a4 {[%clk 0:02:07.5]} 15. Nxg6 {[%clk 0:02:05.1]} 15...
hxg6 {[%clk 0:01:57.8]} 16. O-O {[%clk 0:01:42]} 16... Qa5 {[%clk 0:01:51.2]}
17. c4 {[%clk 0:01:33.3]} 17... Nc5 {[%clk 0:01:45]} 18. Qc2 {[%clk 0:01:32.3]}
18... Qa6 {[%clk 0:01:29.6]} 19. Bc3 {[%clk 0:01:19.2]} 19... Ncd7 {[%clk
0:01:27.6]} 20. Bd4 {[%clk 0:01:08]} 20... Ra8 {[%clk 0:01:17.4]} 21. c5 {[%clk
0:00:48.1]} 21... Be7 {[%clk 0:01:15.8]} 22. f4 {[%clk 0:00:46.4]} 22... Rfb8
{[%clk 0:01:14.6]} 23. Bxf6 {[%clk 0:00:36.2]} 23... Nxf6 {[%clk 0:00:57.6]} 24.
d4 {[%clk 0:00:34.5]} 24... Rxb1 {[%clk 0:00:50.4]} 25. Rxb1 {[%clk 0:00:30.1]}
25... Bd8 {[%clk 0:00:44.6]} 26. Bf1 {[%clk 0:00:29.4]} 26... Qa7 {[%clk
0:00:44.1]} 27. Bd3 {[%clk 0:00:27.5]} 27... Nd7 {[%clk 0:00:40.4]} 28. Nf3
{[%clk 0:00:25.6]} 28... Bc7 {[%clk 0:00:29.4]} 29. g5 {[%clk 0:00:23.3]} 29...
Nf8 {[%clk 0:00:19.6]} 30. Kg2 {[%clk 0:00:23.6]} 30... Rb8 {[%clk 0:00:18.8]}
31. Rxb8 {[%clk 0:00:18.9]} 31... Bxb8 {[%clk 0:00:19.7]} 32. Be2 {[%clk
0:00:15.7]} 32... e5 {[%clk 0:00:13.7]} 33. fxe5 {[%clk 0:00:12.9]} 33... Ne6
{[%clk 0:00:12.4]} 34. Bd1 {[%clk 0:00:12.8]} 34... Qa5 {[%clk 0:00:10.6]} 35.
h4 {[%clk 0:00:11.8]} 35... Bc7 {[%clk 0:00:09.9]} 36. Qxa4 {[%clk 0:00:08.8]}
36... Qc3 {[%clk 0:00:09.8]} 37. Qb3 {[%clk 0:00:09]} 37... Qc1 {[%clk
0:00:10.4]} 38. Kf2 {[%clk 0:00:07]} 38... Ba5 {[%clk 0:00:10.9]} 39. a4 {[%clk
0:00:05]} 39... Bc3 {[%clk 0:00:09.5]} 40. Qc2 {[%clk 0:00:05.2]} 40... Qa3
{[%clk 0:00:09.4]} 41. Qb3 {[%clk 0:00:05.7]} 41... Qc1 {[%clk 0:00:09.4]} 42.
Qc2 {[%clk 0:00:05.8]} 42... Qa3 {[%clk 0:00:09.2]} 43. Ke2 {[%clk 0:00:06]}
43... Ba5 {[%clk 0:00:07]} 44. Qb3 {[%clk 0:00:05.9]} 44... Qc1 {[%clk
0:00:06.5]} 45. Qd3 {[%clk 0:00:03.9]} 45... Qb2+ {[%clk 0:00:06.2]} 46. Bc2
{[%clk 0:00:03.3]} 46... Qa1 {[%clk 0:00:03.5]} 47. Qd1 {[%clk 0:00:03.1]} 47...
Qc3 {[%clk 0:00:03.6]} 48. Qb1 {[%clk 0:00:03.6]} 48... Qc4+ {[%clk 0:00:03.4]}
49. Kf2 {[%clk 0:00:02.5]} 49... Qc3 {[%clk 0:00:03.4]} 50. Qb3 {[%clk
0:00:03.1]} 50... Qa1 {[%clk 0:00:03.2]} 51. Qb1 {[%clk 0:00:03.2]} 51... Qc3
{[%clk 0:00:03.2]} 52. Qd1 {[%clk 0:00:04.1]} 52... Qa3 {[%clk 0:00:03.5]} 53.
Qe2 {[%clk 0:00:03.8]} 53... Qc3 {[%clk 0:00:03.7]} 54. Kg2 {[%clk 0:00:03.7]}
54... Qa1 {[%clk 0:00:03.9]} 55. Qd3 {[%clk 0:00:03.9]} 55... Qc1 {[%clk
0:00:04]} 56. Kf2 {[%clk 0:00:04.2]} 56... Qb2 {[%clk 0:00:04]} 57. Ke2 {[%clk
0:00:04.3]} 57... Qa1 {[%clk 0:00:04.5]} 58. Bb1 {[%clk 0:00:04.1]} 58... Qb2+
{[%clk 0:00:04.8]} 59. Qc2 {[%clk 0:00:04.5]} 59... Qb4 {[%clk 0:00:04.7]} 60.
Ba2 {[%clk 0:00:04.6]} 60... Qa3 {[%clk 0:00:04.6]} 61. Bb3 {[%clk 0:00:04.9]}
61... Qa1 {[%clk 0:00:04.9]} 62. Qa2 {[%clk 0:00:03.3]} 62... Qh1 {[%clk
0:00:04.6]} 63. Kf2 {[%clk 0:00:03.7]} 63... Qh3 {[%clk 0:00:02.8]} 64. Qe2
{[%clk 0:00:03.6]} 64... Qh1 {[%clk 0:00:03]} 65. Bd1 {[%clk 0:00:03.5]} 65...
Qh3 {[%clk 0:00:03]} 66. Bc2 {[%clk 0:00:03.5]} 66... Qg4 {[%clk 0:00:03.3]} 67.
Qf1 {[%clk 0:00:03.6]} 67... Kf8 {[%clk 0:00:02]} 68. Qg2 {[%clk 0:00:04.1]}
68... Qh5 {[%clk 0:00:02.7]} 69. Qh3 {[%clk 0:00:04.1]} 69... Ke7 {[%clk
0:00:03.1]} 70. Kg3 {[%clk 0:00:04.6]} 70... Qh8 {[%clk 0:00:03.6]} 71. Qg4
{[%clk 0:00:04.4]} 71... Qb8 {[%clk 0:00:03.9]} 72. Qh3 {[%clk 0:00:04]} 72...
Qb2 {[%clk 0:00:04.3]} 73. Qg2 {[%clk 0:00:04.6]} 73... Qc1 {[%clk 0:00:04.7]}
74. Qe2 {[%clk 0:00:04.9]} 74... Bc3 {[%clk 0:00:05.1]} 75. Kf2 {[%clk
0:00:04.8]} 75... Qh1 {[%clk 0:00:04.6]} 76. Qf1 {[%clk 0:00:04]} 76... Qxf1+
{[%clk 0:00:04]} 77. Kxf1 {[%clk 0:00:04.9]} 77... Ba5 {[%clk 0:00:03.5]} 78.
Ke2 {[%clk 0:00:05]} 78... Nc7 {[%clk 0:00:04.1]} 79. Bd3 {[%clk 0:00:05]} 79...
Ne6 {[%clk 0:00:04.3]} 80. Kf2 {[%clk 0:00:05.4]} 80... Kf8 {[%clk 0:00:04.3]}
81. Kg3 {[%clk 0:00:05.7]} 81... Bb4 {[%clk 0:00:04.9]} 82. Kf2 {[%clk
0:00:05.7]} 82... Ke7 {[%clk 0:00:05.5]} 83. Ke2 {[%clk 0:00:06.2]} 83... Ba5
{[%clk 0:00:06.1]} 84. Kd1 {[%clk 0:00:06.8]} 84... Bb4 {[%clk 0:00:05.9]} 85.
Nd2 {[%clk 0:00:06.2]} 85... f6 {[%clk 0:00:05.1]} 86. exf6+ {[%clk 0:00:04.1]}
86... gxf6 {[%clk 0:00:06]} 87. Bxg6 {[%clk 0:00:04.1]} 87... fxg5 {[%clk
0:00:06]} 88. hxg5 {[%clk 0:00:04.5]} 88... Nxg5 {[%clk 0:00:06.3]} 89. Ke2
{[%clk 0:00:04]} 89... Ne6 {[%clk 0:00:05.6]} 90. Bf5 {[%clk 0:00:03.8]} 90...
Nc7 {[%clk 0:00:05.9]} 91. Nb3 {[%clk 0:00:03.7]} 91... Kd8 {[%clk 0:00:05.2]}
92. Nc1 {[%clk 0:00:04.1]} 92... Na6 {[%clk 0:00:05.4]} 93. Nd3 {[%clk
0:00:04.6]} 93... Ba5 {[%clk 0:00:05.8]} 94. Ne5 {[%clk 0:00:05]} 94... Nb4
{[%clk 0:00:05.8]} 95. Bd7 {[%clk 0:00:04.7]} 95... Kc7 {[%clk 0:00:06.4]} 96.
Be8 {[%clk 0:00:05.3]} 96... Kb7 {[%clk 0:00:06.2]} 97. Kf3 {[%clk 0:00:04.4]}
97... Bc7 {[%clk 0:00:06.7]} 98. Ng4 {[%clk 0:00:04.2]} 98... Nc2 {[%clk
0:00:04.9]} 99. Bg6 {[%clk 0:00:04.2]} 99... Nb4 {[%clk 0:00:05]} 100. Ke2
{[%clk 0:00:04.4]} 100... Bd8 {[%clk 0:00:04.9]} 101. Ne5 {[%clk 0:00:04.3]}
101... Bf6 {[%clk 0:00:04.9]} 102. Nf7 {[%clk 0:00:04.4]} 102... Kc7 {[%clk
0:00:04.8]} 103. Nd6 {[%clk 0:00:04.4]} 103... Bg5 {[%clk 0:00:05.4]} 104. Nf7
{[%clk 0:00:04.4]} 104... Bf6 {[%clk 0:00:05.1]} 105. Kd2 {[%clk 0:00:05.1]}
105... Na6 {[%clk 0:00:04.6]} 106. Nd6 {[%clk 0:00:05.4]} 106... Be7 {[%clk
0:00:03.8]} 107. Nf5 {[%clk 0:00:03.9]} 107... Bd8 {[%clk 0:00:03.9]} 108. Kc3
{[%clk 0:00:04.5]} 108... Kd7 {[%clk 0:00:04.2]} 109. Nd6 {[%clk 0:00:04.6]}
109... Ba5+ {[%clk 0:00:05.1]} 110. Kd3 {[%clk 0:00:04.6]} 110... Nb4+ {[%clk
0:00:05.6]} 111. Ke2 {[%clk 0:00:05.2]} 111... Na2 {[%clk 0:00:06.1]} 112. Bf5+
{[%clk 0:00:05.2]} 112... Kc7 {[%clk 0:00:06.3]} 113. Bc2 {[%clk 0:00:05.7]}
113... Nc3+ {[%clk 0:00:05.8]} 114. Kf3 {[%clk 0:00:06.2]} 114... Na2 {[%clk
0:00:06.7]} 115. Ne8+ {[%clk 0:00:05.9]} 115... Kd7 {[%clk 0:00:07]} 116. Nf6+
{[%clk 0:00:06.5]} 116... Kc7 {[%clk 0:00:07.9]} 117. Ng4 {[%clk 0:00:06.9]}
117... Nb4 {[%clk 0:00:08.3]} 118. Bb1 {[%clk 0:00:07.4]} 118... Na6 {[%clk
0:00:08.8]} 119. Ne5 {[%clk 0:00:07.6]} 119... Nb4 {[%clk 0:00:08.6]} 120. Ng4
{[%clk 0:00:06.5]} 120... Kd7 {[%clk 0:00:08.3]} 121. e4 {[%clk 0:00:05.7]}
121... dxe4+ {[%clk 0:00:09.2]} 122. Bxe4 {[%clk 0:00:05.1]} 122... Kc7 {[%clk
0:00:09.8]} 123. Ke3 {[%clk 0:00:04.9]} 123... Kb7 {[%clk 0:00:07.3]} 124. Ne5
{[%clk 0:00:05.3]} 124... Bc7 {[%clk 0:00:07.3]} 125. Nc4 {[%clk 0:00:05.4]}
125... Ka6 {[%clk 0:00:05.8]} 126. Kd2 {[%clk 0:00:05.3]} 126... Nd5 {[%clk
0:00:05.8]} 127. Bxd5 {[%clk 0:00:04.7]} 127... cxd5 {[%clk 0:00:06.7]} 128. Ne3
{[%clk 0:00:05.6]} 128... Ka5 {[%clk 0:00:07.1]} 129. Nxd5 {[%clk 0:00:05.5]}
129... Bb8 {[%clk 0:00:07.8]} 130. Kc3 {[%clk 0:00:05.2]} 130... Kxa4 {[%clk
0:00:08.1]} 131. Ne7 {[%clk 0:00:04.8]} 131... Kb5 {[%clk 0:00:08.4]} 132. Kd3
{[%clk 0:00:05.3]} 132... Ba7 {[%clk 0:00:08.8]} 133. c6 {[%clk 0:00:04.2]}
133... Bb6 {[%clk 0:00:08.3]} 134. Ke4 {[%clk 0:00:03.4]} 134... Bd8 {[%clk
0:00:08.9]} 135. Kd5 {[%clk 0:00:03.5]} 135... Kb6 {[%clk 0:00:08.5]} 136. Nc8+
{[%clk 0:00:03.8]} 136... Kc7 {[%clk 0:00:09.4]} 137. Nd6 {[%clk 0:00:04.5]}
137... Be7 {[%clk 0:00:09.8]} 138. Nf5 {[%clk 0:00:04.6]} 138... Ba3 {[%clk
0:00:09.3]} 139. Ng7 {[%clk 0:00:02.8]} 139... Bb2 {[%clk 0:00:08.8]} 140. Ne6+
{[%clk 0:00:03.4]} 140... Kc8 {[%clk 0:00:08.7]} 141. Kd6 {[%clk 0:00:03.1]}
141... Ba3+ {[%clk 0:00:09.3]} 142. Kd5 {[%clk 0:00:03.6]} 142... Bb2 {[%clk
0:00:09.9]} 143. Kc4 {[%clk 0:00:03.9]} 143... Ba3 {[%clk 0:00:09.6]} 144. d5
{[%clk 0:00:04.8]} 144... Bd6 {[%clk 0:00:10.3]} 145. Kd4 {[%clk 0:00:05.5]}
145... Ba3 {[%clk 0:00:09.7]} 146. Ke5 {[%clk 0:00:05.8]} 146... Bb2+ {[%clk
0:00:10.4]} 147. Kf5 {[%clk 0:00:05.7]} 147... Ba3 {[%clk 0:00:11]} 148. Ke4
{[%clk 0:00:06.3]} 148... Bd6 {[%clk 0:00:11.5]} 149. Kd4 {[%clk 0:00:06.6]}
149... Ba3 {[%clk 0:00:12.2]} 150. Kc4 {[%clk 0:00:07]} 150... Bd6 {[%clk
0:00:12.3]} 151. Nd4 {[%clk 0:00:07.6]} 151... Be5 {[%clk 0:00:12.2]} 152. Nb5
{[%clk 0:00:08.3]} 152... Kd8 {[%clk 0:00:12.5]} 153. d6 {[%clk 0:00:08.3]} 1-0